Cogmind - Beta 10.2 @@@ ROGUE MODE // 2021.02.09 @ 14:36:02 Player: bard Result: Destroyed by G-34 Mercenary with Small Laser Performance ------------- Evolutions (1) 500 Regions Visited (3) 600 Robots Destroyed (33) 165 Value Destroyed (647) 647 Prototype IDs (1) 20 Alien Tech Used (0) 0 Bonus (0) 0 TOTAL SCORE: 1932 Bonus ------- None Cogmind --------- Core Integrity 0/400 Matter 14/450 Energy 500/500 System Corruption 9% Temperature Cool (6) Movement Core (150) Ox2 Location -9/Materials Parts ------- > --- POWER (2) -------- (None) > --- PROPULSION (2) --- (None) > --- UTILITY (3) ------ High-capacity Battery Large Matter Pod > --- WEAPON (2) ------- (None) > --- INVENTORY (4) ---- Cooled Ion Engine Hover Unit Rocket Launcher Peak State ------------ > --- POWER ------------ Cooled Ion Engine Cooled Ion Engine > --- PROPULSION ------- Aluminum Leg VTOL Module > --- UTILITY ---------- High-capacity Battery Large Matter Pod > --- WEAPON ----------- Rocket Launcher Rocket Launcher > --- INVENTORY -------- Cooled Ion Engine Rocket Launcher Rocket Launcher [Rating: 15] Favorites ----------- Power Ion Engine Engine Ion Engine Propulsion Aluminum Leg Leg Aluminum Leg Wheel Wheel Hover Unit Hover Unit Flight Unit VTOL Module Utility Large Matter Pod Device Terrain Scanner Storage Large Matter Pod Protection Medium Armor Plating Weapon Rocket Launcher Energy Gun EM Pulse Gun Ballistic Gun Light Assault Rifle Ballistic Cannon Light Cannon Launcher Rocket Launcher Build | -11 -10 -10 -9 ------- Run | Scr Mat Min Mat Slots Evolved 2 | . . . 2 Power 1 | . . . 1 Propulsion . | . . . . Utility 1 | . . . 1 Weapon . | . . . . Parts Attached 36 | 8 12 2 14 Power 4 | 1 1 . 2 Engine 4 | 1 1 . 2 Core . | . . . . Reactor . | . . . . Propulsion 11 | 2 5 . 4 Treads . | . . . . Leg 2 | . 2 . . Wheel 4 | 2 2 . . Hover 3 | . 1 . 2 Flight 2 | . . . 2 Utility 7 | 1 3 . 3 Device 2 | 1 1 . . Storage 4 | . 2 . 2 Processor . | . . . . Hackware . | . . . . Protection 1 | . . . 1 Artifact . | . . . . Weapon 14 | 4 3 2 5 Energy Gun 3 | 3 . . . Energy Cannon . | . . . . Ballistic Gun 3 | 1 1 1 . Ballistic Cannon 1 | . 1 . . Launcher 7 | . 1 1 5 Special Weapon . | . . . . Impact Weapon . | . . . . Slashing Weapon . | . . . . Piercing Weapon . | . . . . Special Melee Weapon . | . . . . Unidentified Prototypes 1 | . . . 1 Parts Lost 18 | . 4 2 12 Power 3 | . 1 . 2 Propulsion 4 | . 1 . 3 Utility 3 | . . 1 2 Weapon 8 | . 2 1 5 Highest Loss Streak 7 | . 4 1 7 Average Slot Usage (%) 84 | . 91 85 76 Engine 13 | . 12 14 14 Leg 17 | . 16 28 7 Wheel 1 | . 5 . . Hover 3 | . 2 . 6 Device 4 | . 14 . . Storage 17 | . 13 14 23 Protection 1 | . . . 3 Energy Gun 2 | . 7 . . Ballistic Gun 5 | . 3 7 3 Ballistic Cannon 6 | . 8 12 . Launcher 10 | . 6 8 15 Naked Turns . | . . . . Heaviest Build 34 | 8 15 14 34 Greatest Support 20 | 20 20 20 20 Greatest Overweight (x) 6 | . 1 . 6 Average Overweight (x) . | . . . 1 Largest Inventory Capacity 4 | 4 4 4 4 Average Capacity 4 | 4 4 4 4 Most Carried 4 | 4 4 4 4 Average Carried 2 | 2 1 1 2 Final Capacity 4 | 4 4 4 4 Final Carried 3 | 3 1 3 3 Class Distribution -------------------- 74% | Mutant 25% | Scavenger-Mutant Dominant Class ---------------- Mutant | -10/Materials Scavenger-Mutant | -10/Mines Mutant | -9/Materials Resources | -11 -10 -10 -9 ----------- Run | Scr Mat Min Mat Matter Collected 764 | 262 301 120 81 Remotely . | . . . . Salvage Created 615 | 34 236 104 241 Parts 61 | 2 20 17 22 Haulers Intercepted 1 | . . . 1 Recyclers Shooed 2 | . . . 2 Parts Field Recycled . | . . . . Retrieved Matter . | . . . . Parts Self-Destructed . | . . . . Prevented . | . . . . Kills | -11 -10 -10 -9 ------- Run | Scr Mat Min Mat Combat Hostiles Destroyed 23 | 1 7 10 5 Guns 9 | 1 4 2 2 Cannons 3 | . . 3 . AOE 11 | . 3 5 3 Classes Destroyed 9 | 1 4 . 4 Worker 1 | . . . 1 Tunneler 1 | . 1 . . Hauler 1 | . . . 1 Recycler 1 | . . . 1 Operator 1 | . 1 . . Watcher 5 | . 1 . 4 Swarmer 12 | . 3 9 . Grunt 10 | 1 4 1 4 Sentry 1 | . . . 1 Best Kill Streak 5 | 1 5 3 4 Combat Bots Only 3 | 1 3 3 2 Max Kills in Single Turn 2 | 1 2 2 2 Gunslinging . | . . . . Exploded 2 | . 2 2 1 Melee . | . . . . Uniques/NPCs Destroyed . | . . . . Combat | -11 -10 -10 -9 -------- Run | Scr Mat Min Mat Damage Taken 2049 | 10 472 334 1233 Core 594 | . 133 58 403 Absorbed by Shields . | . . . . Core Remaining (%) 61 | 100 . 23 . Volleys Fired 79 | 2 31 22 24 Largest 2 | 2 2 2 2 Hottest 80 | 60 80 65 66 Shots Fired 133 | 4 44 44 41 Gun 75 | 4 38 18 15 Cannon 25 | . 3 22 . Launcher 33 | . 3 4 26 Special . | . . . . Kinetic 75 | 2 18 40 15 Thermal . | . . . . Explosive 33 | . 3 4 26 Electromagnetic 25 | 2 23 . . Robot Hit Streak 9 | 2 7 9 6 Robot Miss Streak 7 | 1 3 3 7 Penetration Max . | . . . . Secondary Targets . | . . . . Shots Hit Robots 69 | 3 27 21 18 Core Hits 57 | 2 17 13 25 Critical Hits 1 | . . 1 . Critical Kills . | . . . . Critical Parts Destroyed 1 | . . 1 . Melee Attacks . | . . . . Impact . | . . . . Slashing . | . . . . Piercing . | . . . . Sneak Attacks . | . . . . Combat Hostiles . | . . . . Follow-up Attacks . | . . . . Damage Inflicted 2228 | 29 626 555 1018 Guns 430 | 29 267 84 50 Cannons 236 | . 55 181 . Explosions 1562 | . 304 290 968 Melee . | . . . . Ramming . | . . . . Kinetic 472 | 17 140 265 50 Thermal . | . . . . Explosive 1562 | . 304 290 968 Electromagnetic 194 | 12 182 . . Impact . | . . . . Slashing . | . . . . Piercing . | . . . . Highest Corruption 9 | . . . 9 Average Corruption 9 | . . . 9 Corruption Purged . | . . . . Effects 21 | . . . 21 Message Errors 5 | . . . 5 Matter Fused 4 | . . . 4 Heat Flow Errors 1 | . . . 1 Energy Discharges 2 | . . . 2 Parts Rejected 1 | . . . 1 Data Loss (minor) 2 | . . . 2 Data Loss (major) 1 | . . . 1 Misfires 2 | . . . 2 Targeting Errors 2 | . . . 2 Weapon Failures 1 | . . . 1 Overload Shots . | . . . . Overflow Damage 116 | . 40 24 52 Projectiles . | . . . . Explosions 116 | . 40 24 52 Melee . | . . . . Knockbacks 4 | . 2 2 . Impact . | . . . . Kinetic 3 | . 1 2 . Secondary 1 | . 1 . . Self-Inflicted Damage 258 | . . 107 151 Shots 8 | . . 3 5 Rammed . | . . . . Targets Rammed . | . . . . Kicked . | . . . . Crushed . | . . . . Highest Temperature 181 | 26 139 40 181 Average Temperature 35 | 16 62 13 28 Received Heat Transfer 435 | 6 249 27 153 Siege Activations . | . . . . Robots Corrupted . | . . . . Combat Hostiles . | . . . . Parts Fried 1 | . 1 . . Impact Corruptions . | . . . . Robots Melted . | . . . . Combat Hostiles . | . . . . Parts Melted . | . . . . Heat Transferred . | . . . . Parts Sabotaged . | . . . . Parts Stolen . | . . . . Parts Stripped . | . . . . Power Chain Reactions . | . . . . Missiles Intercepted . | . . . . Alert | -11 -10 -10 -9 ------- Run | Scr Mat Min Mat Peak Influence 201 | 20 123 201 192 Initial 50 | . 13 31 50 Average 93 | 3 82 128 89 Maximum Alert Level 1 | . . 1 . Low Security (%) 98 | 100 100 94 100 Level 1 1 | . . 5 . Level 2 . | . . . . Level 3 . | . . . . Level 4 . | . . . . Level 5 . | . . . . High Security . | . . . . Max Security . | . . . . Squads Dispatched 3 | . 2 . 1 Investigation . | . . . . Extermination . | . . . . Reinforcement 3 | . 2 . 1 Assault . | . . . . Garrison . | . . . . Intercept . | . . . . Construction Impeded 1 | . . . 1 Haulers Reinforced . | . . . . Stealth | -11 -10 -10 -9 --------- Run | Scr Mat Min Mat Distress Signals 2 | . . . 2 Communications Jammed . | . . . . Distress Signals . | . . . . Times Spotted 41 | 1 15 10 15 Peak Tracking Total 5 | 1 4 4 5 Tactical Retreats 3 | . 1 2 . Traps | -11 -10 -10 -9 ------- Run | Scr Mat Min Mat Traps Triggered . | . . . . Indirectly . | . . . . Trap Hack Attempts . | . . . . Triggered . | . . . . Disarmed . | . . . . Reprogrammed . | . . . . Reused . | . . . . Traps Extracted . | . . . . Installed . | . . . . Triggered . | . . . . Machines | -11 -10 -10 -9 ---------- Run | Scr Mat Min Mat Machines Disabled 3 | . . 2 1 Max in Single Turn 1 | . . 1 1 Machines Sabotaged . | . . . . Garrisons Compromised . | . . . . Overloaded Fab Kills . | . . . . Fab Network Shutdowns . | . . . . Hacking | -11 -10 -10 -9 --------- Run | Scr Mat Min Mat Machines Accessed 3 | . 2 . 1 Terminals 1 | . 1 . . Fabricators . | . . . . Repair Stations . | . . . . Recycling Units 2 | . 1 . 1 Scanalyzers . | . . . . Garrison Access . | . . . . Total Hacks 10 | . 5 . 5 Successful 7 | . 2 . 5 Failed 3 | . 3 . . Catastrophic . | . . . . Database Lockouts . | . . . . Manual . | . . . . Terminals 3 | . 3 . . Fabricators . | . . . . Repair Stations . | . . . . Recycling Units 7 | . 2 . 5 Scanalyzers . | . . . . Garrison Access . | . . . . Terminal Hacks . | . . . . Fabricator Hacks . | . . . . Repair Station Hacks . | . . . . Recycling Unit Hacks 7 | . 2 . 5 Recycle Component 2 | . . . 2 Process 2 | . . . 2 Report Inventory 1 | . 1 . . Retrieve Matter 2 | . 1 . 1 Scanalyzer . | . . . . Garrison Access Hacks . | . . . . Unauthorized Hacks . | . . . . Terminals . | . . . . Fabricators . | . . . . Repair Stations . | . . . . Recycling Units . | . . . . Scanalyzers . | . . . . Garrison Access . | . . . . Data Cores Recovered . | . . . . Used . | . . . . Hacking Detections 3 | . 2 . 1 Full Trace Events 1 | . 1 . . Feedback Events . | . . . . Feedback Blocked . | . . . . Robot Schematics Acquired . | . . . . Robots Built . | . . . . Matter . | . . . . Time . | . . . . Total Robot Build Rating . | . . . . Part Schematics Acquired . | . . . . Parts Built . | . . . . Matter . | . . . . Time . | . . . . Total Part Build Rating . | . . . . Parts Repaired . | . . . . Time . | . . . . Parts Recycled 2 | . . . 2 Recycled Matter 23 | . . . 23 Retrieved Matter 23 | . . . 23 Retrieved Components . | . . . . Parts Scanalyzed . | . . . . Part Schematics Acquired . | . . . . Parts Damaged . | . . . . Bothacking | -11 -10 -10 -9 ------------ Run | Scr Mat Min Mat Used RIF Installer . | . . . . Robots Hacked . | . . . . Non-combat . | . . . . Combat . | . . . . Robot Hacks Applied . | . . . . Relay Couplers Released . | . . . . Robots Rewired . | . . . . Allies Hacked . | . . . . Hacks Repelled . | . . . . Allies | -11 -10 -10 -9 -------- Run | Scr Mat Min Mat Total Allies . | . . . . Largest Group . | . . . . Highest-Rated Group . | . . . . Highest-Rated Ally . | . . . . Total Orders . | . . . . Ally Attacks . | . . . . Total Damage . | . . . . Kills . | . . . . Allies Corrupted . | . . . . Allies Melted . | . . . . Intel | -11 -10 -10 -9 ------- Run | Scr Mat Min Mat Robot Analysis Total . | . . . . Derelict Logs Recovered 2 | . . 2 . Drone Launches . | . . . . Drone Recoveries . | . . . . Exploration | -11 -10 -10 -9 ------------- Run | Scr Mat Min Mat Turns Passed 1936 | 118 576 589 653 Spaces Moved 1300 | 140 429 435 296 Core 73 | 59 2 . 12 Treads . | . . . . Legs 855 | . 268 435 152 Wheels 169 | 81 88 . . Hover 185 | . 71 . 114 Flight 18 | . . . 18 Fastest Speed 50 | 50 80 120 120 Average Speed 127 | 67 111 120 189 Slowest Speed 520 | 80 120 120 520 Overloaded Moves . | . . . . Propulsion Burnouts . | . . . . Robots Hopped . | . . . . Cave-ins Triggered 1 | . . . 1 Exploration Rate (%) 31 | 5 40 56 25 Regions Visited 3 Branch Regions 1 Pre-discovered Areas . | . . . . Known Exits Taken . | . . . . Unknown Exits Taken 3 | 1 1 1 . Scrap Searched 1 | . . 1 . Spaces Dug . | . . . . Terrain Destroyed 210 | . 17 31 162 Melee . | . . . . Projectile . | . . . . AOE 210 | . 17 31 162 Terrain Rammed . | . . . . Walls Destroyed . | . . . . Machines Disabled . | . . . . Actions | -11 -10 -10 -9 --------- Run | Scr Mat Min Mat Total 1458 | 158 487 462 351 Wait . | . . . . Move 1297 | 139 428 434 296 Hop . | . . . . Pick Up 35 | 9 9 3 14 Fast Attach . | . . . . Attach 29 | 6 10 2 11 Detach 2 | . 1 1 . Swap 7 | 2 2 . 3 Drop 9 | . 6 . 3 Fire 79 | 2 31 22 24 Melee . | . . . . Ram . | . . . . Kick . | . . . . Crush . | . . . . Escape Stasis . | . . . . Rewire . | . . . . Trap . | . . . . Miscellaneous . | . . . . Route ------- -11/Scrapyard -10/Materials (discovered 2 exits: *Mat / [*Min]) -10/Mines -9/Materials (discovered 4 exits: Mat / Min / *Sto x2) History --------- Turn | Location | Event 2 | -11/Scrapyard | Met Revision 17 87 | -11/Scrapyard | Discovered new exit (range 8) 119 | -11/Scrapyard | Entered Materials 311 | -10/Materials | Build established: Mutant 314 | -10/Materials | Core integrity fell below 50% 317 | -10/Materials | Lost 4 parts (1p1n2w) 592 | -10/Materials | Discovered new exit (range 14) 669 | -10/Materials | Discovered new exit (range 9) 695 | -10/Materials | Entered Mines 737 | -10/Mines | Learned 4 Materials zone layouts 1070 | -10/Mines | Discovered new exit (range 11) 1082 | -10/Mines | Learned location of 1 exit from Materials 1189 | -10/Mines | Received a Rocket Launcher from a helpful Derelict 1280 | -10/Mines | Build established: Scavenger-Mutant 1284 | -10/Mines | Entered Materials 1284 | -9/Materials | Evolved 2 slots: Power x1, Utility x1 1285 | -9/Materials | Identified exit to Materials 1286 | -9/Materials | Identified exit to Storage 1286 | -9/Materials | Identified exit to Mines 1450 | -9/Materials | Crushed by falling debris 1558 | -9/Materials | Lost 3 parts (1u2w) 1756 | -9/Materials | Build established: Mutant 1807 | -9/Materials | Discovered exit to Storage (range 11) 1879 | -9/Materials | Core integrity fell below 50% 1934 | -9/Materials | Core integrity fell below 20% 1937 | -9/Materials | Destroyed by G-34 Mercenary with Small Laser Last Messages --------------- U-05 Engineer builds a Wall. U-05 Engineer lays Concrete. Cld. Ion Engine destroyed. System corrupted: Energy discharge (-156). System corrupted: Cld. Ion Engine rejected. Acquired Cld. Ion Engine. Hover Unit destroyed. [Achievement: Remodeling] The unstable cave ceiling collapses. U-05 Engineer builds a Wall. System corrupted: Substantial component data lost. U-05 Engineer lays Concrete. The unstable cave ceiling collapses. U-05 Engineer builds a Wall. Rocket Launcher destroyed. U-05 Engineer lays Concrete. [Achievement: First Step to Greatness] The achievement interface (ESC then open Records) offers an effective way to explore all of your earned achievements as well as seek out new goals for future runs. Map ----- +----------------------------------------------------+ | ?????????????????????????????????????????????????? | | ?????????????????????????????????????????????????? | | ?????????????????????????????????????????????????? | | ?????????????????????????????????????????????????? | | ?????????????????????????????????????????????????? | | ?????????????????????????????????????????????????? | | ?????????????????????????????????????????????????? | | ???????????????????????????????????????########??? | | ???????????????????????????????????????# "" #??? | | ???????????????????????????????????????# ""S #### | | ??????????????????????????????????????## "" # # | | ??????????????????????????????????????# # # | | ??????????????????????????????????????## + # | | ???????????????????????????????###?????# # # | | ??????????????????????????????## ####??######## # | | ?????????????????????????????? #??# # # | | ?????????????????????????????? """ #??# # # | | ?????????????????????????????? "T" #??# """ + | | ?????????????????????????????? #??# """ # # | | ?????????????????????????????? #??# """ # # | | ?????????????????????????????? #??# # # | | ?????????????????????????????? #??######## # | | ?????????????????????????????? #????###### # | | ##############################+########## # | | g r # | | @ g ##############+## | | Y g #??????????# | | ##### ########u ########## #??????????# """ | | ##### #??# # #????????? #??????????# """ | | # #??# # ##????????? #??????????# """ | | / #??# #?????????? ########???# | | # #??## # ?????????? # #???# """ | | # ####### ?????????? # """ #???# """ | | # ## ##// ##????????? # "Y" #???# """ | | #### ###// #?????????? + #???# | | # #[[ #?????????? # #???###### | | ###[[ #?????????? # #????????? | | ###]] #?????????? ########????????? | | #### #?#]] #?????????? # #????????? | | #### ######## ###???????? # #????????? | | ## #### # # # #???????? # #????????? | | #### ###### #???????? + #????????? | | ####?# ##???????? # #????????? | | ?????######## > ##???????? # #????????? | | #????????### # # #??????? ############????? | | #????????? # #??????????????????????????? | | #???????? # #+## ##??????????????????????????? | | #??????? """ # ??????????????????????????? | | #??????" """ # #?????????????????????????? | | ??????"" """ # #?????????????????????????? | +----------------------------------------------------+ Best States ------------- Heat Dissipation 35 Energy Generation 23 Energy Capacity 860 Matter Stores 400 Matter Capacity 600 Sight Range 16 Terrain Scan Range 14 Terrain Scan Density 10 Armor Coverage 225 Evasion (%) 50 Item Schematics ----------------- None Robot Schematics ------------------ None Fabricated ------------ Nothing Alien Tech Used ----------------- None Achievements -------------- First Step to Greatness Let's See Who's Tougher Loot Pinata Maybe Next Time I'll Detach My Launcher Oops Remodeling Risk Taker Storm Trooper Uninvited Guest Unlikely Earthworm Challenges ------------ None Game ------ Seed TiamatGravmagRegenerator Manual? 0 Play Time 00:35:00 Cumulative 1.1 hours Start 2021.02.09 @ 14:00:21 End 2021.02.09 @ 14:36:02 Sessions 1 Manual Loads 0 Difficulty Rogue Special Mode None Game No. 1 Rogue 1 Adventurer 0 Explorer 0 Win Type - Total 0 Types 0/0/0/0/0/0/0/0/0 Lore% 0 Gallery% 2 Achievement% 3 Wizard Run 0 Options --------- ASCII 0 Keyboard 0 Movement Arrows Keybinds 0 Fullscreen 2 Font 24/Proggy Map View 76x50 Tactical HUD 0 Map Filters NONE Filters NONE Steam 1 RUN: f3d438ce-70b2-4fac-863e-cbe5168f4f81